[Event "8th Montevideo Open 2025"]
[Site "Montevideo"]
[Date "2025.02.01"]
[Round "1.1"]
[White "Shoker, Samy"]
[Black "Morales Neyra, Flora"]
[Result "1-0"]
[Annotator "TA"]
[ECO "A39"]
[WhiteElo "2446"]
[BlackElo "1844"]
[PlyCount "43"]
[EventDate "2025.02.01"]
[EventType "swiss"]
[EventCountry "URU"]
[SourceTitle "playchess.com"]
[Source "ChessBase"]
[SourceQuality "1"]
[TimeControl "5400+30"]

{[%evp 17,43,43,62,0,72,38,83,76,79,78,83,78,72,85,82,83,230,133,291,279,412,404,381,376,412,419,414,421]} 1. Nf3 Nf6 2. c4 c5 3. g3 g6 4. Bg2 Bg7 5. Nc3 Nc6 6. d4 cxd4 7. Nxd4 O-O 8. O-O a6 9. c5 Qc7 {The main line 9...Qc7 scores better than 9...Nxd4.} 10. Nxc6 {A39: Symmetrical English vs ...g6: 4 Bg2 Bg7 5 Nf3 Nf6 6 0-0 0-0 7 d4.} (10. Nb3 $14) 10... bxc6 (10... dxc6 $11 11. Na4 Bf5) 11. Na4 {White is more active.} Rb8 $146 (11... d5 12. Nb6 Rb8 13. Nxc8 Rfxc8 14. Bh3 Rd8 15. Qa4 Ne4 16. Qxa6 Nxc5 17. Qa3 Qd6 {0-1 Baier,C (1841)-Zuferi,E (1853) GER-ch U25 Oberhof 2010 (6)}) 12. Bf4 {White is better.} e5 {[%csl Oa6,Od7] Black has weak pawns} 13. Bd2 {[%cal Bf4d2,Bd2a5,Ba5c7][%mdl 32]} d5 14. cxd6 {White plays in the center} Qxd6 15. Ba5 $36 {[%mdl 2048] White is in control.} Qxd1 16. Rfxd1 {[%cal Oa5c7]} Bb7 (16... e4 $16 {keeps fighting.}) 17. Nc5 ({White should play} 17. Bc7 $18) 17... e4 $2 {[#]} (17... Bc8 $16) 18. Bc7 $1 $18 (18. Bxe4 Nxe4 19. Nxe4 Rfe8 $14) 18... Rbc8 {Black is weak on the dark squares} (18... Rbe8 $142 19. Nxb7 Re7) 19. Bd6 {White is winning.} Ba8 20. Bxf8 (20. Nxa6 e3 21. Bxf8 (21. fxe3 Rfe8 $18) 21... Bxf8 $16) (20. Nxe4 Nxe4 21. Bxe4 (21. Bxf8 Bxb2 22. Bxe4 Bxa1 $18) 21... Rfe8 $11) (20. Bxe4 Rfd8 $16) 20... Kxf8 21. Rac1 ({Not} 21. Bxe4 Nxe4 22. Nxe4 Re8 $18) 21... Ke7 22. Nxa6 {[%emt 0:11:00] Black got outplayed after the opening.   Weighted Error Value: White=0.17 (very precise) /Black=0.55  Mistake:       	White=1     	Black=4      Inaccurate:     	White=1     	Black=1      OK:         	White=7     	Black=1      Best:        	White=1     	Black=1      Strong:       	White=1     	---} (22. Bxe4 Nxe4 23. Nxe4 Bxb2) 1-0

[Event "8th Montevideo Open 2025"]
[Site "Montevideo"]
[Date "2025.02.01"]
[Round "1.2"]
[White "Martinez Garay, Carlos"]
[Black "Coro, Lucas"]
[Result "0-1"]
[Annotator "TA"]
[ECO "B44"]
[WhiteElo "1838"]
[BlackElo "2415"]
[PlyCount "36"]
[EventDate "2025.02.01"]
[EventType "swiss"]
[EventCountry "URU"]
[SourceTitle "playchess.com"]
[Source "ChessBase"]
[SourceQuality "1"]
[TimeControl "5400+30"]

{[%evp 10,36,13,-7,0,-25,-22,-30,-27,-42,-43,-39,-31,-38,-29,-46,-35,-55,-51,-81,-56,-83,-65,-162,-155,-166,-178,-169,-168]} 1. e4 c5 2. Nf3 Nc6 3. d4 cxd4 4. Nxd4 e6 5. Nxc6 bxc6 6. Nc3 d5 {B44: Sicilian: Taimanov: 5 Nb5.} 7. exd5 {7.Bd3 might become the main line.} cxd5 8. Bb5+ Bd7 {Black has an edge.} 9. Bxd7+ Qxd7 10. O-O Nf6 11. Re1 Be7 12. Bf4 O-O 13. Be5 $146 (13. Qe2 Bd6 14. Bxd6 Qxd6 15. Rad1 Qb4 16. Rb1 Rfc8 17. a3 Qb6 18. Rec1 {0-1 Cabala,N (1471)-Leisch,L (1758) AUT-ch U12 Woerth 2014 (4)}) 13... Rac8 14. Re3 Rfd8 15. Rg3 g6 16. Qf3 (16. Rh3 $15) 16... Ne8 $19 {Black is clearly better.} 17. h4 {Prevents f6.} Bxh4 18. Rh3 {[%emt 0:07:57]} Qe7 {[%emt 0:06:34] Weighted Error Value: White=0.22 (precise) /Black=0.06 (flawless)   Mistake:       	White=1     	---        Inaccurate:     	White=2     	---        OK:         	White=3     	Black=5      Best:        	---       	Black=2} 0-1

[Event "8th Montevideo Open 2025"]
[Site "Montevideo"]
[Date "2025.02.01"]
[Round "1.3"]
[White "Villca, Julian"]
[Black "Perez Selios, Luis"]
[Result "1-0"]
[Annotator "TA"]
[ECO "E94"]
[WhiteElo "2413"]
[BlackElo "1836"]
[PlyCount "119"]
[EventDate "2025.02.01"]
[EventType "swiss"]
[EventCountry "URU"]
[SourceTitle "playchess.com"]
[Source "ChessBase"]
[SourceQuality "1"]
[TimeControl "5400+30"]

{[%evp 15,119,31,55,55,72,47,96,69,70,60,89,87,81,67,60,-43,39,8,49,54,47,-8,-5,-13,0,0,0,0,0,0,0,-21,11,0,127,0,0,0,0,-2,0,0,0,0,0,0,0,0,0,0,0,0,0,0,0,0,0,0,0,0,0,0,17,17,17,17,17,17,17,17,17,17,17,25,12788,12788,12788,6222,6217,6119,6118,6111,29975,29977,29979,29982,29981,29983,29984,29984,29985,29986,29986,29987,29987,29987,29987,29988,29989,29989,29992,29993,29993,29994,29994,29995]} 1. c4 Nf6 2. Nf3 g6 3. Nc3 Bg7 4. e4 d6 5. d4 {[%cal Bd2d4,Bd4d5][%mdl 32]} O-O 6. Be2 Na6 7. O-O e5 8. Be3 c6 {8...Qe7 is becoming the main line.} 9. d5 {E94: King's Indian: Classical: 6 Be2 e5 7 0-0: Various Black 7th moves.} Qe7 10. Rb1 {White is more active.} c5 (10... cxd5 $14 {deserves consideration.} 11. cxd5 Nc7) 11. Nd2 {White is better.} Nc7 $146 (11... Ne8 12. a3 f5 13. f3 f4 14. Bf2 g5 15. b4 b6 16. bxc5 bxc5 17. Qa4 Nb8 {1-0 Palo,D (2337)-Borbjerggaard,L (2368) DEN-chB Greve 2002 (6)}) 12. Kh1 Kh8 13. a3 {[%emt 0:05:29]} Ng8 {[%emt 0:06:45]} 14. Qc2 {[%emt 0:36:12]} f5 {[%emt 0:22:15]} 15. f4 {[%emt 0:03:20]} (15. exf5 $14 gxf5 16. f4) 15... Bh6 {[%emt 0:00:43]} ({Black should play} 15... exf4 $1 $15 16. Bg1 g5) 16. Rbe1 {[%emt 0:05:40]} fxe4 {[%emt 0:02:59]} (16... exf4 $5 17. Bxf4 g5 $16) 17. Ndxe4 {[%emt 0:02:35][%cal Of4e5]} exf4 {[%emt 0:02:43] [#]} 18. Bxc5 {[%emt 0:02:28]} dxc5 $11 {[%emt 1:04:05]} 19. d6 {[%emt 0:44:16]} Qg7 {[%emt 0:00:00]} 20. dxc7 {[%emt 0:00:00]} Qxc7 {[%emt 0:00:00]} 21. Nd5 {[%emt 0:00:00]} Qc6 {[%emt 0:00:00]} 22. Nxf4 {[%emt 0:00:00] Excellent horsemanship.} Nf6 {[%emt 0:00:00] The position is symmetric and equal} (22... Rxf4 $2 23. Rxf4 Qc7 (23... Bxf4 $2 24. Qc3+ $18) 24. Rff1 $18) 23. Nxf6 {[%emt 0:00:00]} Bf5 {[%emt 0:00:00]} (23... Qxf6 {simplifies} 24. g3 Bxf4 25. Rxf4 Bf5) 24. Bd3 {[%emt 0:00:00]} (24. Nxg6+ Bxg6 (24... hxg6 25. Rxf5 gxf5 26. Nd5 $15) 25. Bd3 (25. Qc3 $2 Bg7 $19) 25... Rxf6 $19) 24... Qxf6 {[%emt 0:00:00]} (24... Rxf6 $11 25. Nd5 Bxd3 26. Qxd3 (26. Rxf6 $2 Bxc2 27. Rxc6 bxc6 $19) 26... Rxf1+ 27. Qxf1 Re8) 25. Bxf5 {[%emt 0:00:00]} ({White has to play} 25. Ne6 $1 $16 {Bxf5 is the strong threat.} Rfe8 26. Bxf5 (26. Nxc5 Rxe1 27. Rxe1 Bxd3 $14) 26... gxf5 27. Nxc5 (27. Qxf5 Qxf5 28. Rxf5 Bg7 $14)) 25... Qxf5 {[%emt 0:00:00]} 26. Qxf5 {[%emt 0:00:00]} Rxf5 {[%emt 0:00:00]} 27. Nd5 {[%emt 0:00:00]} Rxf1+ {[%emt 0:00:00]} 28. Rxf1 {[%emt 0:00:00]} Rf8 {[%emt 0:00:00]} 29. Rxf8+ {[%emt 0:00:00]} Bxf8 {[%mdl 4096] Endgame KB-KN} 30. g3 {[%emt 0:00:00]} Kg7 31. Kg2 {[%emt 0:00:00]} Kf7 32. Kf3 {[%emt 0:00:00]} Bg7 33. b3 {[%emt 0:00:00]} Bb2 34. a4 {[%emt 0:00:00]} Be5 35. Ke4 {[%emt 0:00:00]} Ke6 36. Ne3 {[%emt 0:00:00]} h5 37. Ng2 {[%emt 0:00:00]} g5 38. Ne1 {[%emt 0:00:00]} h4 39. gxh4 {[%emt 0:00:00]} gxh4 40. Nf3 {[%emt 0:00:00]} Bc7 41. h3 {[%emt 0:00:00]} Bg3 42. Ng1 {[%emt 0:00:00]} Bb8 43. Ne2 {[%emt 0:00:00]} Be5 44. Nf4+ {[%emt 0:00:00]} Bxf4 $4 {[%mdl 8192] This costs Black the game.} (44... Kd6 $11) 45. Kxf4 {[%emt 0:00:00] KP-KP} Kf6 46. Kg4 {[%emt 0:00:00]} Ke5 47. Kxh4 {[%emt 0:00:00] [#]} Kf4 48. Kh5 {[%emt 0:00:00] Threatening mate with h4.} Kf5 49. a5 {[%emt 0:00:00] White mates.} b6 50. axb6 {[%emt 0:00:00]} axb6 {K3P-KPP. White is a pawn up.} 51. h4 {[%emt 0:00:00]} Ke4 52. Kg4 {[%emt 0:00:00]} Kd3 53. h5 {[%emt 0:00:00]} Kc3 54. h6 {[%emt 0:00:00]} Kxb3 55. h7 {[%emt 0:00:00]} Kxc4 56. h8=Q {[%emt 0:00:00]} Kb4 57. Qb2+ {[%emt 0:00:00]} Ka5 58. Kf4 {[%emt 0:00:00]} b5 {[%cal Bb6b5,Bb5b4][%mdl 32]} 59. Ke4 {[%emt 0:00:00]} b4 60. Kd5 {[%emt 0:00:00] Weighted Error Value: White=0.13 (very precise) /Black=0.32  Loses game:     	---       	Black=1      Mistake:       	White=3     	Black=3      Inaccurate:     	White=1     	Black=3      OK:         	White=17    	Black=18     Best:        	White=1     	---} 1-0

[Event "8th Montevideo Open 2025"]
[Site "Montevideo"]
[Date "2025.02.01"]
[Round "1.4"]
[White "Miller, Ariel"]
[Black "Vazquez, Facundo"]
[Result "1/2-1/2"]
[Annotator "TA"]
[ECO "B42"]
[WhiteElo "1835"]
[BlackElo "2404"]
[PlyCount "71"]
[EventDate "2025.02.01"]
[EventType "swiss"]
[EventCountry "URU"]
[SourceTitle "playchess.com"]
[Source "ChessBase"]
[SourceQuality "1"]
[TimeControl "5400+30"]

{[%evp 9,71,21,89,33,47,16,19,11,9,12,18,-4,7,0,4,-10,0,-6,2,-22,-10,-69,-81,-123,-131,-205,-199,-211,0,0,18,0,4,0,29,32,60,0,0,-9,0,-34,0,-71,0,-46,5,6,8,7,47,22,27,10,35,12,15,4,9,0,20,0,6,0]} 1. e4 c5 2. Nf3 e6 3. d4 cxd4 4. Nxd4 a6 5. Bd3 b5 (5... Bc5 $11 6. Nb3 Be7) 6. Be3 {White is more active.} (6. O-O $16) 6... Bb7 $14 7. Qe2 Nf6 8. Nd2 d6 9. a4 b4 10. f3 Nbd7 11. N4b3 d5 12. Bf2 Bd6 13. exd5 Nxd5 14. Ne4 {[%emt 0:05:11]} Be5 {[%emt 0:08:27][%cal Od5f4]} 15. Nbc5 {[%emt 0:00:30]} (15. g3 $11) 15... Nxc5 $1 $15 {[%emt 0:00:30]} 16. Bxc5 {[%emt 0:00:30]} Nf4 $1 {[%emt 0:00:30]} 17. Qd2 {[%emt 0:00:30]} (17. Qf2 $17 Qxd3 (17... Nxd3+ 18. cxd3 f5 19. d4 $15) 18. cxd3 Nxd3+ 19. Ke2 Nxf2 20. Kxf2) 17... f5 $19 {[%emt 0:00:30]} (17... Bxb2 $2 18. Nd6+ $18) 18. Ng3 {[%emt 0:00:30] [#]} a5 $2 {[%emt 0:00:30]} ({Worse is} 18... Bxb2 19. Qxf4 Bxa1 20. Nxf5 exf5 (20... Bc3+ 21. Kf2 $14) 21. O-O $11) (18... b3 $1 $19 {...Rc8 would now be deadly.} 19. Be3 Qh4 (19... Bxb2 20. Rb1 $17)) 19. O-O-O $36 {[%emt 0:00:30][%cal Ba1d1,Bd1d3,Bd3d6][%mdl 2080] White is more active.} Nxd3+ {[%emt 0:00:30]} 20. Qxd3 {[%emt 0:00:30]} Qxd3 {[%emt 0:00:30]} 21. Rxd3 {[%emt 0:00:30] aiming for Re1.} Bf4+ {[%emt 0:00:30] A strong pair of Bishops.} 22. Kb1 $1 {[%emt 0:00:30] Re1 is the strong threat.} Bc6 {[%emt 0:00:30]} 23. Nh5 {[%emt 0:00:30]} (23. Ne2 $1 $14 Bb8 24. Nd4 Bxa4 25. b3 (25. Nxe6 Kf7 $11)) 23... Bh6 $1 {[%emt 0:00:30][%cal Oe8f7]} 24. Rd6 {[%emt 0:00:30]} Bd5 {[%emt 0:00:30]} 25. Bd4 {[%emt 0:00:30]} O-O {[%emt 0:00:30]} 26. Re1 {[%emt 0:00:30] [#]} (26. b3 $11 {keeps the balance.}) 26... Rf7 {[%emt 0:00:30]} ({Better is} 26... b3 $1 $17) 27. Be5 {[%emt 0:00:30]} (27. h4 $11 {is more appropriate.}) 27... Bg5 {[%emt 0:00:30]} ({Black should try} 27... f4 $1 $15) 28. Nf4 {[%emt 0:00:30]} Bxf4 {[%emt 0:00:30]} 29. Bxf4 {[%emt 0:00:30]} h6 {[%emt 0:00:30]} 30. Be5 {[%emt 0:00:30]} g5 {[%emt 0:00:30]} 31. h4 {[%emt 0:00:30]} Kh7 {[%emt 0:00:30]} 32. hxg5 {[%emt 0:00:30]} hxg5 {[%emt 0:00:30] The position is equal.} 33. Rh1+ {[%emt 0:00:30]} Kg6 {[%emt 0:00:30]} 34. Re1 {[%emt 0:00:30]} Kh7 {[%emt 0:00:30]} 35. Rh1+ {[%emt 0:00:30]} Kg6 {[%emt 0:00:30]} 36. Re1 {[%emt 0:00:30] Weighted Error Value: White=0.27 (precise) /Black=0.21 (precise) .  Missed win:     	---       	Black=1      Mistake:       	White=5     	Black=2      Inaccurate:     	White=3     	Black=3      OK:         	White=4     	Black=9      Best:        	White=1     	Black=3      Strong:       	White=1     	Black=3} 1/2-1/2

[Event "8th Montevideo Open 2025"]
[Site "Montevideo"]
[Date "2025.02.01"]
[Round "1.5"]
[White "Hoffman, Alejandro"]
[Black "Diaz Rosas, Alvaro"]
[Result "1-0"]
[Annotator "TA"]
[ECO "C41"]
[WhiteElo "2368"]
[BlackElo "1832"]
[PlyCount "71"]
[EventDate "2025.02.01"]
[EventType "swiss"]
[EventCountry "URU"]
[SourceTitle "playchess.com"]
[Source "ChessBase"]
[SourceQuality "1"]
[TimeControl "5400+30"]

{[%evp 17,71,12,37,25,18,27,43,43,38,12,26,-19,-3,-57,-43,-52,88,97,106,97,198,129,176,118,174,170,221,189,322,135,266,273,249,135,126,128,216,215,411,403,389,389,393,392,674,555,558,538,1691,1643,29988,29989,29989,29990,29989,29990]} 1. d4 d6 2. e4 Nf6 3. Nc3 e5 4. Nf3 Nbd7 5. Bc4 Be7 6. O-O O-O 7. a4 {[%emt 0:02:24]} a5 {[%emt 0:05:12]} 8. Qe2 {[%emt 0:00:04]} c6 {[%emt 0:00:24]} 9. Rd1 {[%emt 0:00:26]} Qc7 {[%emt 0:01:33]} 10. Ba2 {[%emt 0:00:14] C41: Philidor Defence.} exd4 {[%emt 0:01:48]} 11. Nxd4 {[%emt 0:00:39]} Ne5 {[%emt 0:01:28]} 12. h3 {[%emt 0:00:18] White is slightly better.} Re8 {[%emt 0:04:55]} 13. f4 {[%emt 0:00:20]} Ng6 {[%emt 0:00:11]} 14. g4 $146 {[%emt 0:00:43]} (14. Re1 d5 15. e5 Bb4 16. Be3 Nd7 17. Qf2 Ndf8 18. Nde2 Qe7 19. Rad1 Qh4 20. Qf3 {0-1 Berset,P (2132)-Borgo,G (2420) SUI-chT Switzerland 2014 (2.4)}) 14... d5 {[%emt 0:02:37][%cal Bd6d5,Bd5e4][%mdl 32]} 15. e5 {[%emt 0:02:29]} (15. f5 $11 Qg3+ 16. Qg2 Qxg2+ 17. Kxg2 Nh4+ 18. Kf1 Nxe4 (18... dxe4 19. Kf2 $15) 19. Nxe4 dxe4 20. Be3) 15... Bc5 $15 {[%emt 0:01:25][%cal Oh7h5]} 16. Qf2 {[%emt 0:02:24]} Ne4 {[%emt 0:06:18]} (16... Nxg4 $15 17. hxg4 Qd7) 17. Nxe4 $16 {[%emt 0:00:38]} dxe4 {[%emt 0:00:12]} 18. Be3 {[%emt 0:00:59]} Bd7 {[%emt 0:11:30]} (18... Qb6 $16) 19. c3 {[%emt 0:00:51]} (19. e6 $18 fxe6 20. f5) 19... Rad8 {[%emt 0:01:51]} (19... Bxd4 $16 20. Rxd4 Be6) 20. Qc2 {[%emt 0:06:48]} ({White should try} 20. e6 $18 fxe6 21. f5) 20... Bxd4 {[%emt 0:09:50]} (20... Be6 $16) 21. cxd4 $18 {[%emt 0:00:34]} (21. Rxd4 $6 c5 22. Rd5 (22. Rxe4 Bc6 $11) 22... b6 $14) 21... Qb6 {[%emt 0:05:01]} (21... Ne7 22. d5 (22. Qxe4 Be6 $18) 22... Qc8) 22. Qxe4 {[%emt 0:09:40] And now f5 would win.} ({Worse is} 22. f5 Nxe5 23. Kh1 (23. Qxe4 $2 {loses.} Nc4 $19) 23... Nf3 $17) 22... Qxb2 {[%emt 0:47:15]} (22... Qb4 $142 23. Qc2 (23. f5 Nxe5 24. Bd2 Qb6 $18) 23... Be6) 23. Rdb1 (23. f5 $18) 23... Qe2 {[%emt 0:00:00]} (23... Qc3 $16 24. f5 Bxf5 25. gxf5 Nxe5) 24. Re1 {[%emt 0:02:46]} (24. Rxb7 Nh4 25. Bxf7+ (25. Kh1 $2 Nf3 $19) 25... Kxf7 $19) 24... Qb2 {[%emt 0:00:00]} 25. Qb1 {[%emt 0:00:30]} (25. f5 $18) 25... Qxb1 $16 {[%emt 0:00:00]} 26. Raxb1 {[%emt 0:00:30]} b5 {[%emt 0:00:00]} (26... Be6 $16) 27. f5 {[%emt 0:00:30]} Ne7 {[%emt 0:00:00] [#]} (27... Nf8 {was called for.} 28. Rec1 bxa4) 28. e6 $18 {[%emt 0:00:30] Black is weak on the dark squares} fxe6 {[%emt 0:00:00]} 29. fxe6 {[%emt 0:00:30]} Bc8 {[%emt 0:00:00]} 30. axb5 {[%emt 0:00:30][%cal Ba4b5,Bb5c6,Bc6c7][%mdl 32]} Nd5 $2 {[%emt 0:00:00]} (30... Bb7 31. b6 Rd6) 31. bxc6 {[%emt 0:04:26]} Bxe6 {[%emt 0:00:00]} 32. Bd2 {[%emt 0:03:39]} Nf4 {[%emt 0:00:00]} 33. c7 {[%emt 0:02:08]} Rc8 {[%emt 0:00:00]} 34. Bxf4 {[%emt 0:00:17] White mates.} Bxa2 {[%emt 0:00:00]} 35. Rxe8+ {[%emt 0:00:12]} Rxe8 {[%emt 0:00:00]} 36. Rb8 {[%emt 0:00:05] Weighted Error Value: White=0.32/Black=1.00  Missed win:     	White=1     	---        Mistake:       	White=4     	Black=10     Inaccurate:     	White=2     	Black=2      OK:         	White=3     	Black=8      Best:        	White=4     	Black=1} 1-0

[Event "8th Montevideo Open 2025"]
[Site "Montevideo"]
[Date "2025.02.01"]
[Round "1.6"]
[White "Martinez Tagliafico, Sergio"]
[Black "Roselli Mailhe, Bernardo"]
[Result "1-0"]
[Annotator "TA"]
[ECO "E54"]
[WhiteElo "1831"]
[BlackElo "2342"]
[PlyCount "34"]
[EventDate "2025.02.01"]
[EventType "swiss"]
[EventCountry "URU"]
[SourceTitle "playchess.com"]
[Source "ChessBase"]
[SourceQuality "1"]
[TimeControl "5400+30"]

{[%evp 18,34,8,30,12,0,0,0,0,-3,0,-29,-14,-23,-14,-14,-16,-31,-32]} 1. d4 {[%emt 0:02:41]} e6 {[%emt 0:00:05]} 2. c4 {[%emt 0:00:13]} Nf6 {[%emt 0:00:06]} 3. Nc3 {[%emt 0:00:21]} Bb4 {[%emt 0:00:05]} 4. e3 {[%emt 0:00:08]} d5 {[%emt 0:00:12]} 5. Bd3 {[%emt 0:01:36]} O-O {[%emt 0:00:08]} 6. Nf3 {[%emt 0:00:48]} c5 {[%emt 0:00:37]} 7. O-O {[%emt 0:00:24]} b6 {[%emt 0:01:39]} 8. a3 {[%emt 0:06:39]} Bxc3 {[%emt 0:00:48]} 9. bxc3 {[%emt 0:00:06]} dxc4 {[%emt 0:02:45]} 10. Bxc4 {[%emt 0:00:32]} Bb7 {[%emt 0:00:09]} 11. Ne5 {[%emt 0:08:02]} Nbd7 {[%emt 0:03:15]} 12. Nxd7 {[%emt 0:02:43]} Qxd7 {[%emt 0:00:23] The position is equal.} 13. f3 {[%emt 0:00:09]} Rac8 {[%emt 0:02:51] [#] And now ...cxd4 would win.} 14. Qb3 {[%emt 0:13:03]} Bd5 {[%emt 0:06:16]} 15. Bxd5 exd5 16. a4 {[%emt 0:05:06]} Rfe8 {[%emt 0:01:05]} 17. Bd2 {[%emt 0:00:32]} Re6 {[%emt 0:01:58][%mdl 32768] Weighted Error Value: White=0.06 (flawless) /Black=0.03 (flawless) .  Inaccurate:     	White=1     	---        OK:         	White=4     	Black=4     . Loss on time!?} 1-0

[Event "8th Montevideo Open 2025"]
[Site "Montevideo"]
[Date "2025.02.01"]
[Round "1.7"]
[White "Villegas, Franco"]
[Black "Barandiaran, Gabriel"]
[Result "1-0"]
[Annotator "TA"]
[ECO "C83"]
[WhiteElo "2325"]
[BlackElo "1830"]
[PlyCount "81"]
[EventDate "2025.02.01"]
[EventType "swiss"]
[EventCountry "URU"]
[SourceTitle "playchess.com"]
[Source "ChessBase"]
[SourceQuality "1"]
[TimeControl "5400+30"]

{[%evp 22,81,50,27,31,43,48,38,80,79,75,72,79,47,49,20,27,14,55,27,39,37,33,32,33,25,76,50,157,3,18,0,-10,-29,-25,-36,-15,-13,0,-87,-79,-39,-44,-50,-41,-91,-32,-82,-86,-131,0,0,484,459,472,418,403,393,29990,29991,29996,29997]} 1. e4 e5 2. Nf3 Nc6 3. Bb5 a6 4. Ba4 Nf6 5. O-O Nxe4 6. d4 b5 7. Bb3 d5 8. dxe5 Be6 9. c3 Be7 10. Nbd2 O-O 11. Re1 Nxd2 12. Bxd2 Na5 {C83: Open Ruy Lopez: 9 c3 Be7.} 13. Bc2 Nc4 14. Bc1 Bg4 $146 {White is slightly better.} (14... c5 15. a4 Bg4 16. b3 Na5 17. axb5 axb5 18. Qd3 g6 19. Qxb5 Qc7 20. Qe2 Qb7 {1-0 Enkhnamuun,B (1659)-Lkhaasuren,S (1629) Wch Amateurs U1700 (Women) 2024 (7)}) 15. Qd3 {[%csl Gc2][%cal Rd3h7]} g6 16. Nd4 Qd7 {Prevents Nc6} 17. b3 c5 18. Nf3 (18. h3 $5 cxd4 19. hxg4 $16 (19. bxc4 dxc4 20. Qxd4 Qxd4 $17)) 18... Bf5 19. Qd1 {Bxf5 is the strong threat.} (19. Qe2 $5 Bxc2 20. Qxc2 $18) 19... Bxc2 20. Qxc2 Nb6 21. Bh6 Rfe8 {[#]} 22. e6 $1 fxe6 23. Ne5 Qc7 (23... Qd6 $1 $11 {keeps the balance.}) 24. Nxg6 $16 {White is more active.} Bf6 {Against Nxe7+} (24... Bd6 $1 $14) 25. Nf4 $2 (25. Re3 $16) 25... Qf7 $11 26. Rad1 e5 27. Ne2 Qg6 28. Qc1 Kh8 29. Ng3 Rg8 30. c4 bxc4 $17 31. bxc4 d4 32. Re4 Qf7 33. f4 (33. Re2 $1 $15) 33... Rae8 (33... Qxc4 34. fxe5 Qxc1 35. Rxc1 $16) (33... Nxc4 $17 34. fxe5 Bxe5) 34. Rf1 ({White should play} 34. fxe5 $15 Bxe5 35. Bg5) 34... Qxc4 35. Qb1 {[#]} Nd5 (35... Nd7 $1 $17 {Strongly threatening ...Qd5.} 36. Qb7 Qe6 37. fxe5 Be7 (37... Nxe5 38. Qc7 $15) (37... Bxe5 38. Bf4 $15)) 36. fxe5 $11 Nc3 $2 {[%mdl 8192] [#]} (36... Bxe5 37. Rxe5 Rxe5 38. Rf7 $16) (36... Rxe5 $2 37. Rxe5 (37. Rxf6 Nc3 $18) 37... Bxe5 38. Qe4 $18) (36... Be7 $1 $11 {and Black has nothing to worry.}) 37. exf6 $1 $18 {Rxe8 would kill now.} Nxb1 38. Rxe8 Rxe8 (38... Qxf1+ $2 39. Kxf1 $18) 39. f7 Rb8 ({Not} 39... Qxf1+ $2 40. Kxf1 $18) (39... Rg8 $18 40. f8=Q (40. f8=B $2 {loses.} Nc3 $19) 40... Rxf8 41. Rxf8+ Qg8) 40. Nh5 {[%csl Gh5][%cal Rh6g7]} Rg8 41. f8=Q {Weighted Error Value: White=0.23 (precise) /Black=0.46  Loses game:     	---       	Black=1      Mistake:       	White=4     	Black=5      Inaccurate:     	White=5     	Black=2      OK:         	White=8     	Black=7      Best:        	White=4     	Black=6} (41. f8=B Qxf1+ (41... Qxa2 42. Bfg7+ Rxg7 43. Bxg7+ Kg8 44. Rf8#) 42. Kxf1 Rg6 $16 (42... Nd2+ $2 43. Kg1 $18)) 1-0

[Event "8th Montevideo Open 2025"]
[Site "Montevideo"]
[Date "2025.02.01"]
[Round "1.9"]
[White "De Dovitiis, Alejo"]
[Black "Delgado, Nazareno"]
[Result "1-0"]
[Annotator "RC"]
[ECO "A43"]
[WhiteElo "2225"]
[BlackElo "1819"]
[PlyCount "56"]
[EventDate "2025.02.01"]
[EventType "swiss"]
[EventCountry "URU"]
[SourceTitle "playchess.com"]
[Source "ChessBase"]
[SourceQuality "1"]
[TimeControl "5400+30"]

1. d4 {[%emt 0:02:27]} Nf6 {[%emt 1:31:00]} 2. Nc3 {[%emt 1:29:03]} c5 {[%emt 0:00:30]} 3. d5 {[%emt 0:00:00]} d6 {[%emt 0:00:00]} 4. e4 {[%emt 0:00:00]} g6 {[%emt 0:00:00]} 5. Nf3 {[%emt 0:00:00]} Bg7 {[%emt 0:00:00]} 6. Bb5+ {[%emt 0:00:00]} Bd7 {[%emt 0:00:00]} 7. a4 {[%emt 0:00:00]} a6 {[%emt 0:00:00]} 8. Be2 {[%emt 0:00:00]} O-O {[%emt 0:00:00]} 9. O-O {[%emt 0:00:00]} Ne8 {[%emt 0:00:00]} 10. Bf4 {[%emt 0:00:00]} e5 {[%emt 0:00:00]} 11. dxe6 {[%emt 0:00:00]} Bxe6 {[%emt 0:00:00]} 12. Nd5 {[%emt 0:00:00]} Nc6 {[%emt 0:00:00]} 13. c3 {[%emt 0:00:00]} Ne5 {[%emt 0:00:00]} 14. Qd2 {[%emt 0:00:00]} Bxd5 {[%emt 0:00:00]} 15. exd5 {[%emt 0:00:00]} Nc7 {[%emt 0:00:00]} 16. a5 {[%emt 0:00:00]} Qd7 {[%emt 0:00:00]} 17. c4 {[%emt 0:00:00]} Rab8 {[%emt 0:00:00]} 18. Nxe5 {[%emt 0:00:00]} dxe5 {[%emt 0:00:00]} 19. Be3 {[%emt 0:00:00]} Qd6 {[%emt 0:00:00]} 20. b4 {[%emt 0:00:00]} cxb4 {[%emt 0:00:00]} 21. Rab1 {[%emt 0:00:00]} Rfe8 {[%emt 0:00:00]} 22. Qxb4 {[%emt 0:00:00]} Qxb4 {[%emt 0:00:00]} 23. Rxb4 {[%emt 0:00:00]} Bf8 {[%emt 0:00:00]} 24. Rb3 {[%emt 0:00:00]} b5 {[%emt 0:00:00]} 25. axb6 {[%emt 0:00:00]} Rb7 {[%emt 0:00:00]} 26. Rfb1 {[%emt 0:00:00]} Na8 {[%emt 0:00:00]} 27. c5 {[%emt 0:00:00]} Reb8 {[%emt 0:00:00]} 28. c6 {[%emt 0:00:00]} Re8 {[%emt 0:00:00]} 1-0